fUSD/lending_fUSD_20240714
["ID","MTS","AMOUNT","RATE_DAILY","PERIOD"]
[332114090,1720969847219,-779.96,0.00013698,2]
[332114091,1720969847228,-1064.16,0.00013698,2]
[332114092,1720969847237,-500.0,0.00013698,2]
[332114093,1720969847246,-847.72,0.00013698,2]
[332114094,1720969847255,-500.0,0.00013698,2]
[332114095,1720969847264,-500.0,0.00013698,2]
[332114096,1720969847274,-500.0,0.00013698,2]
[332114097,1720969847283,-500.0,0.00013698,2]
[332114098,1720969847292,-500.0,0.00013698,2]
[332114099,1720969847302,-6495.86,0.00013698,2]
[332114100,1720969847311,-783.16,0.00013698,2]
[332114101,1720969847319,-500.0,0.00013698,2]
[332114102,1720969847328,-500.0,0.00013698,2]
[332114103,1720969847338,-500.0,0.00013698,2]
[332114104,1720969847347,-500.0,0.00013698,2]
[332114105,1720969847356,-500.0,0.00013698,2]
[332114106,1720969847365,-500.0,0.00013698,2]
[332114107,1720969847375,-500.0,0.00013698,2]
[332114108,1720969847384,-500.0,0.00013698,2]
[332114109,1720969847394,-500.0,0.00013698,2]
[332114110,1720969847403,-500.0,0.00013698,2]
[332114111,1720969847412,-500.0,0.00013698,2]
[332114112,1720969847421,-1542.53,0.00013698,2]
[332114113,1720969847430,-500.0,0.00013698,2]
[332114114,1720969847439,-8408.35,0.00013698,2]
[332114115,1720969847448,-651.39,0.00013698,2]
[332114116,1720969847458,-500.0,0.00013698,2]
[332114117,1720969847467,-500.0,0.00013698,2]
[332114118,1720969847476,-500.0,0.00013698,2]
[332114119,1720969847485,-500.0,0.00013698,2]
[332114120,1720969847494,-500.0,0.00013698,2]
[332114121,1720969847503,-523.61,0.00013698,2]
[332114122,1720969847512,-904.08,0.00013698,2]
[332114123,1720969847522,-500.0,0.00013698,2]
[332114124,1720969847531,-1087.19,0.00013698,2]
[332114125,1720969847540,-500.0,0.00013698,2]
[332114126,1720969847549,-500.0,0.00013698,2]
[332114127,1720969847558,-500.0,0.00013698,2]
[332114128,1720969847567,-500.0,0.00013698,2]
[332114129,1720969847576,-500.0,0.00013698,2]
[332114130,1720969847586,-500.0,0.00013698,2]
[332114131,1720969847595,-386.47626732,0.00013698,2]
[332114132,1720969847604,-500.0,0.00013698,2]
[332114133,1720969847613,-500.0,0.00013698,2]
[332114134,1720969847623,-500.0,0.00013698,2]
[332114135,1720969847636,-500.0,0.00013698,2]
[332114136,1720969847646,-500.0,0.00013698,2]
[332114137,1720969847657,-550.08,0.00013698,2]
[332114138,1720969847667,-704.59,0.00013698,2]
[332114139,1720969847676,-994.35,0.00013698,2]
[332114140,1720969847688,-500.0,0.00013698,2]
[332114141,1720969847697,-500.0,0.00013698,2]
[332114142,1720969847709,-500.0,0.00013698,2]
[332114143,1720969847719,-500.0,0.00013698,2]
[332114144,1720969847728,-500.0,0.00013698,2]
[332114145,1720969847738,-500.0,0.00013698,2]
[332114146,1720969847747,-500.0,0.00013698,2]
[332114147,1720969847757,-622.69,0.00013698,2]
[332114148,1720969847767,-507.61,0.00013698,2]
[332114149,1720969847776,-161.93143947,0.00013698,2]
[332114150,1720969847795,-338.06856053,0.00013698,2]
[332114151,1720969847804,-500.0,0.00013698,2]
[332114152,1720969847814,-500.0,0.00013698,2]
[332114153,1720969847823,-500.0,0.00013698,2]
[332114154,1720969847832,-500.0,0.00013698,2]
[332114155,1720969847841,-352.42068999,0.00013698,2]
[332114156,1720969847850,-500.0,0.00013698,2]
[332114157,1720969847859,-500.0,0.00013698,2]
[332114158,1720969847868,-851.45,0.00013698,2]
[332114159,1720969847878,-500.0,0.00013698,2]
[332114160,1720969847887,-500.0,0.00013698,2]
[332114161,1720969847897,-1030.16,0.00013698,2]
[332114162,1720969847907,-500.0,0.00013698,2]
[332114163,1720969847916,-500.0,0.00013698,2]
[332114164,1720969847926,-500.0,0.00013698,2]
[332114165,1720969847935,-500.0,0.00013698,2]
[332114166,1720969847944,-500.0,0.00013698,2]
[332114167,1720969847954,-579.96,0.00013698,2]
[332114168,1720969847964,-960.42,0.00013698,2]
[332114169,1720969847973,-700.66,0.00013698,2]
[332114170,1720969847983,-500.0,0.00013698,2]
[332114171,1720969847991,-500.0,0.00013698,2]
[332114172,1720969848000,-705.31,0.00013698,2]
[332114173,1720969848009,-500.0,0.00013698,2]
[332114174,1720969848018,-500.0,0.00013698,2]
[332114175,1720969848028,-500.0,0.00013698,2]
[332114176,1720969848037,-500.0,0.00013698,2]
[332114177,1720969848046,-500.0,0.00013698,2]
[332114178,1720969848056,-500.0,0.00013698,2]
[332114179,1720969848065,-500.0,0.00013698,2]
[332114180,1720969848075,-500.0,0.00013698,2]
[332114181,1720969848084,-500.0,0.00013698,2]
[332114182,1720969848093,-500.0,0.00013698,2]
[332114183,1720969848103,-500.0,0.00013698,2]
[332114184,1720969848112,-629.01,0.00013698,2]
[332114185,1720969848122,-359.61179073,0.00013698,2]
[332114186,1720969848131,-500.0,0.00013698,2]
[332114187,1720969848141,-500.0,0.00013698,2]
[332114188,1720969848151,-200.0,0.00013699,2]
[332114189,1720969848160,-741.65,0.00013699,2]
[332114190,1720969848170,-200.0,0.00013699,2]
[332114191,1720969848179,-2751.0,0.00013699,2]
[332114192,1720969848188,-250.0,0.00013699,2]
[332114193,1720969848198,-3820.74299891,0.000137,2]
[332114194,1720969848207,-1000.0,0.000137,2]
[332114195,1720969848217,-5800.0,0.000137,2]
[332114196,1720969848226,-300.0,0.000137,5]
[332114197,1720969848236,-169.71,0.000137,2]
[332114198,1720969848245,-169.71,0.000137,2]
[332114199,1720969848255,-169.71,0.000137,2]
[332114200,1720969848265,-169.71,0.000137,2]
[332114201,1720969848274,-169.71,0.000137,2]
[332114202,1720969848284,-462.46289417,0.00013719,2]
[332114203,1720969848294,-1931.35720837,0.00013719,2]
[332114204,1720969848306,-661.3131406,0.00013719,2]
[332114205,1720969849467,-679.11242848,0.00013719,2]
[332114206,1720969849476,-837.48757152,0.00013719,2]
[332114207,1720969849495,-550.31722928,0.00013719,2]
[332114208,1720969849505,-916.47866072,0.00013736,2]
[332114209,1720969849920,-2026.77504163,0.00013736,2]
[332114210,1720969849931,-4437.16774525,0.00013736,2]
[332114211,1720969849940,-705.16287743,0.00013736,2]
[332114212,1720969849951,-739.60336545,0.00013736,2]
[332114213,1720969849961,-343.0165506,0.00013736,2]
[332114214,1720969849973,-500.0,0.00013736,2]
[332114215,1720969849985,-682.25801296,0.00013736,2]
[332114216,1720969849997,-380.19342403,0.00013736,2]
[332114217,1720969850006,-500.0,0.00013753,2]
[332114218,1720969850015,-500.0,0.00013753,2]
[332114219,1720969850024,-500.0,0.00013753,2]
[332114220,1720969850035,-425.70330523,0.00013753,2]
[332114221,1720969850051,-211.14622622,0.00013753,2]
[332114222,1720969850061,-500.0,0.00013753,2]
[332114223,1720969850070,-500.0,0.00013753,2]
[332114224,1720969850080,-500.0,0.00013753,2]
[332114225,1720969850089,-500.0,0.00013753,2]
[332114226,1720969850098,-500.0,0.00013753,2]
[332114227,1720969850108,-500.0,0.00013753,2]
[332114228,1720969850120,-291.86464264,0.00013753,2]
[332114229,1720969850130,-500.0,0.00013753,2]
[332114230,1720969850139,-500.0,0.00013753,2]
[332114231,1720969850152,-174.4115841,0.00013753,2]
[332114232,1720969850163,-253.62874362,0.00013753,2]
[332114233,1720969850176,-503.49125638,0.00013753,2]
[332114234,1720969850188,-262.70674362,0.00013753,2]
[332114235,1720969850201,-237.29325638,0.00013753,2]
[332114236,1720969850211,-238.52072931,0.00013753,2]
[332114237,1720969850224,-261.47927069,0.00013753,2]
[332114238,1720969850233,-500.0,0.00013753,2]
[332114239,1720969850244,-500.0,0.00013753,2]
[332114240,1720969850255,-203.69425982,0.00013753,2]
[332114241,1720969850267,-296.30574018,0.00013753,2]
[332114242,1720969850278,-500.0,0.00013753,2]
[332114243,1720969850289,-500.0,0.00013753,2]
[332114244,1720969850299,-500.0,0.00013753,2]
[332114245,1720969850310,-500.0,0.00013753,2]
[332114246,1720969850320,-149.02380878,0.00013753,2]
[332114247,1720969850335,-272.2950575,0.00013753,2]
[332114248,1720969850347,-515.14099998,0.00013753,2]
[332114249,1720969850358,-188.87013374,0.00013753,2]
[332114250,1720969850367,-606.5746361,0.00013753,2]
[332114251,1720969850377,-500.0,0.00013753,2]
[332114252,1720969850386,-500.0,0.00013753,2]
[332114253,1720969850396,-500.0,0.00013753,2]
[332114254,1720969850406,-500.0,0.00013753,2]
[332114255,1720969850415,-105.07838083,0.00013753,2]
[332114260,1720970174243,1000.0,0.00027,120]
[332114276,1720970486399,405.07,0.00027,120]
[332114277,1720970720964,472.42566841,9e-05,2]
[332114291,1720970883850,2227.80400413,0.0001,2]
[332114344,1720971031923,-362.68,0.00010668,2]
[332114345,1720971031934,-1476.9626867,0.00011,2]
[332114346,1720971031944,-159.95883883,0.00011098,2]
[332114347,1720971031956,-189.23917447,0.00011098,2]
[332114365,1720971038070,-13.18208738,0.00011098,2]
[332114366,1720971038080,-173.89908377,0.00011098,2]
[332114367,1720971038089,-226.25339825,0.00011098,2]
[332114368,1720971038099,-44.8754306,0.00011098,2]
[332114369,1720971038251,-151.90086249,0.00011098,2]
[332114370,1720971038260,-155.0,0.00011098,2]
[332114371,1720971038270,-195.80571006,0.00011098,2]
[332114372,1720971038279,-263.86139089,0.00011098,2]
[332114373,1720971038289,-155.75964403,0.00011098,2]
[332114374,1720971038298,-239.57449318,0.00011098,2]
[332114375,1720971038308,-46.43457047,0.00011098,2]
[332114376,1720971038319,-120.91527382,0.00011098,2]
[332114377,1720971038330,-130.23292368,0.00011098,2]
[332114517,1720971039861,-2367.04173483,0.00011098,2]
[332114520,1720971039872,-451.57996723,0.00011098,2]
[332114522,1720971039884,-3059.07829794,0.00011098,2]
[332114527,1720971039921,-12105.13746273,0.00011098,2]
[332114529,1720971039930,-156.0,0.00011199,2]
[332114531,1720971039940,-56.79354502,0.00011199,2]
[332114534,1720971039954,-185.90839369,0.00011199,2]
[332114536,1720971039964,-4276.62770436,0.000118,2]
[332114538,1720971039973,-158.94199896,0.00012121,2]
[332114540,1720971039984,-205.63053403,0.00012314,2]
[332114542,1720971039997,-205.63053403,0.00012314,2]
[332114544,1720971040007,-190.13,0.00012465,2]
[332114546,1720971040016,-250.0,0.00012568,2]
[332114547,1720971040026,-1000.0,0.00012758,2]
[332114549,1720971040037,-249.9,0.00012758,2]
[332114551,1720971040047,-362.68,0.00012932,2]
[332114553,1720971040056,-7776.30762379,0.00013,2]
[332114554,1720971040066,-2875.97006666,0.00013105,2]
[332114556,1720971040077,-1000.0,0.00013127,2]
[332114558,1720971040086,-155.47150963,0.00013516,2]
[332114559,1720971040095,-1247.49866057,0.00013516,2]
[332114561,1720971040104,-1529.00642362,0.00013516,2]
[332114563,1720971040114,-10236.00295068,0.0001358,2]
[332114565,1720971040123,-1000.0,0.00013597,2]
[332114566,1720971040133,-1000.0,0.00013598,2]
[332114568,1720971040144,-867.196,0.00013598,2]
[332114570,1720971040154,-7500.0,0.00013598,2]
[332114572,1720971040163,-669.3107,0.000136,2]
[332114573,1720971040173,-1627.64029,0.0001362,2]
[332114575,1720971040182,-5800.0,0.00013649,2]
[332114577,1720971040192,-1000.0,0.00013652,2]
[332114578,1720971040201,-11331.6027,0.00013653,2]
[332114580,1720971040210,-5800.0,0.00013658,2]
[332114582,1720971040219,-2114.09230457,0.00013666,2]
[332114612,1720971040562,-1003.48536654,0.00013666,2]
[332114626,1720971040708,-2682.42232889,0.00013666,2]
[332114628,1720971040717,-5800.0,0.00013675,2]
[332114629,1720971040726,-1585.68504511,0.00013683,2]
[332114635,1720971040778,-4214.31495489,0.00013683,2]
[332114637,1720971040788,-500.0,0.00013689,2]
[332114639,1720971040799,-500.0,0.0001369,2]
[332114641,1720971040809,-5800.0,0.00013691,2]
[332114643,1720971040820,-500.0,0.00013698,2]
[332114645,1720971040831,-500.0,0.00013698,2]
[332114647,1720971040840,-500.0,0.00013698,2]
[332114649,1720971040850,-500.0,0.00013698,2]
[332114651,1720971040860,-500.0,0.00013698,2]
[332114652,1720971040870,-500.0,0.00013698,2]
[332114654,1720971040881,-500.0,0.00013698,2]
[332114656,1720971040890,-500.0,0.00013698,2]
[332114658,1720971040900,-500.0,0.00013698,2]
[332114660,1720971040910,-500.0,0.00013698,2]
[332114662,1720971040919,-500.0,0.00013698,2]
[332114664,1720971040929,-500.0,0.00013698,2]
[332114666,1720971040939,-500.0,0.00013698,2]
[332114668,1720971040950,-323.45422938,0.00013698,2]
[332114669,1720971040960,-155.32911998,0.00013698,2]
[332114671,1720971040969,-500.0,0.00013698,2]
[332114673,1720971040979,-500.0,0.00013698,2]
[332114675,1720971040991,-500.0,0.00013698,2]
[332114677,1720971041001,-500.0,0.00013698,2]
[332114679,1720971041010,-500.0,0.00013698,2]
[332114680,1720971041020,-500.0,0.00013698,2]
[332114682,1720971041030,-500.0,0.00013698,2]
[332114684,1720971041040,-568.98,0.00013698,2]
[332114686,1720971041049,-500.0,0.00013698,2]
[332114688,1720971041058,-500.0,0.00013698,2]
[332114690,1720971041070,-500.0,0.00013698,2]
[332114691,1720971041080,-500.0,0.00013698,2]
[332114693,1720971041090,-500.0,0.00013698,2]
[332114694,1720971041102,-500.0,0.00013698,2]
[332114695,1720971041111,-500.0,0.00013698,2]
[332114696,1720971041122,-292.03583593,0.00013698,2]
[332114697,1720971041132,-500.0,0.00013698,2]
[332114698,1720971041141,-500.0,0.00013698,2]
[332114699,1720971041152,-500.0,0.00013698,2]
[332114700,1720971041162,-500.0,0.00013698,2]
[332114701,1720971041171,-500.0,0.00013698,2]
[332114702,1720971041182,-500.0,0.00013698,2]
[332114703,1720971041192,-500.0,0.00013698,2]
[332114705,1720971041202,-500.0,0.00013698,2]
[332114706,1720971041212,-500.0,0.00013698,2]
[332114708,1720971041222,-500.0,0.00013698,2]
[332114710,1720971041233,-165.02855399,0.00013698,2]
[332114712,1720971041242,-500.0,0.00013698,2]
[332114714,1720971041252,-500.0,0.00013698,2]
[332114716,1720971041261,-500.0,0.00013698,2]
[332114718,1720971041272,-500.0,0.00013698,2]
[332114720,1720971041282,-500.0,0.00013698,2]
[332114722,1720971041291,-500.0,0.00013698,2]
[332114724,1720971041300,-471.63221489,0.00013698,2]
[332114726,1720971041310,-500.0,0.00013698,2]
[332114728,1720971041319,-500.0,0.00013698,2]
[332114730,1720971041329,-500.0,0.00013698,2]
[332114732,1720971041338,-500.0,0.00013698,2]
[332114734,1720971041347,-500.0,0.00013698,2]
[332114737,1720971041357,-500.0,0.00013698,2]
[332114739,1720971041368,-500.0,0.00013698,2]
[332114741,1720971041377,-500.0,0.00013698,2]
[332114743,1720971041386,-500.0,0.00013698,2]
[332114745,1720971041399,-500.0,0.00013698,2]
[332114747,1720971041408,-500.0,0.00013698,2]
[332114749,1720971041419,-500.0,0.00013698,2]
[332114751,1720971041428,-500.0,0.00013698,2]
[332114753,1720971041439,-500.0,0.00013698,2]
[332114755,1720971041449,-500.0,0.00013698,2]
[332114758,1720971041460,-500.0,0.00013698,2]
[332114760,1720971041470,-500.0,0.00013698,2]
[332114762,1720971041480,-500.0,0.00013698,2]
[332114764,1720971041489,-500.0,0.00013698,2]
[332114766,1720971041499,-500.0,0.00013698,2]
[332114768,1720971041511,-500.0,0.00013698,2]
[332114770,1720971041520,-500.0,0.00013698,2]
[332114772,1720971041529,-559.63,0.00013698,2]
[332114774,1720971041538,-500.0,0.00013698,2]
[332114776,1720971041548,-500.0,0.00013698,2]
[332114778,1720971041557,-500.0,0.00013698,2]
[332114780,1720971041566,-500.0,0.00013698,2]
[332114782,1720971041576,-500.0,0.00013698,2]
[332114784,1720971041585,-500.0,0.00013698,2]
[332114786,1720971041595,-500.0,0.00013698,2]
[332114788,1720971041604,-500.0,0.00013698,2]
[332114790,1720971041613,-500.0,0.00013698,2]
[332114792,1720971041623,-500.0,0.00013698,2]
[332114794,1720971041632,-500.0,0.00013698,2]
[332114796,1720971041641,-500.0,0.00013698,2]
[332114798,1720971041651,-500.0,0.00013698,2]
[332114800,1720971041660,-500.0,0.00013698,2]
[332114802,1720971041669,-500.0,0.00013698,2]
[332114804,1720971041678,-500.0,0.00013698,2]
[332114806,1720971041687,-500.0,0.00013698,2]
[332114808,1720971041696,-500.0,0.00013698,2]
[332114810,1720971041705,-500.0,0.00013698,2]
[332114812,1720971041714,-890.4,0.00013698,2]
[332114814,1720971041723,-500.0,0.00013698,2]
[332114816,1720971041732,-641.56,0.00013698,2]
[332114818,1720971041742,-500.0,0.00013698,2]
[332114820,1720971041752,-622.12,0.00013698,2]
[332114822,1720971041761,-795.79,0.00013698,2]
[332114824,1720971041771,-500.0,0.00013698,2]
[332114826,1720971041783,-500.0,0.00013698,2]
[332114829,1720971041795,-500.0,0.00013698,2]
[332114830,1720971041805,-584.60765117,0.00013698,2]
[332114832,1720971041815,-500.0,0.00013698,2]
[332114834,1720971041826,-500.0,0.00013698,2]
[332114837,1720971041836,-1538.86,0.00013698,2]
[332114839,1720971041846,-528.93,0.00013698,2]
[332114841,1720971041856,-500.0,0.00013698,2]
[332114843,1720971041866,-500.0,0.00013698,2]
[332114845,1720971041876,-500.0,0.00013698,2]
[332114847,1720971041887,-500.0,0.00013698,2]
[332114849,1720971041899,-500.0,0.00013698,2]
[332114851,1720971041909,-1010.38,0.00013698,2]
[332114853,1720971041918,-500.0,0.00013698,2]
[332114855,1720971041928,-500.0,0.00013698,2]
[332114857,1720971041938,-500.0,0.00013698,2]
[332114858,1720971041947,-500.0,0.00013698,2]
[332114860,1720971041956,-500.0,0.00013698,2]
[332114862,1720971041965,-500.0,0.00013698,2]
[332114864,1720971041975,-500.0,0.00013698,2]
[332114866,1720971041984,-500.0,0.00013698,2]
[332114868,1720971041997,-500.0,0.00013698,2]
[332114870,1720971042007,-500.0,0.00013698,2]
[332114872,1720971042016,-500.0,0.00013698,2]
[332114874,1720971042026,-500.0,0.00013698,2]
[332114876,1720971042037,-500.0,0.00013698,2]
[332114878,1720971042046,-500.0,0.00013698,2]
[332114880,1720971042055,-540.14,0.00013698,2]
[332114882,1720971042065,-563.8,0.00013698,2]
[332114884,1720971042075,-663.79,0.00013698,2]
[332114886,1720971042084,-500.0,0.00013698,2]
[332114888,1720971042093,-500.0,0.00013698,2]
[332114890,1720971042103,-500.0,0.00013698,2]
[332114892,1720971042112,-500.0,0.00013698,2]
[332114894,1720971042122,-500.0,0.00013698,2]
[332114896,1720971042131,-500.0,0.00013698,2]
[332114898,1720971042140,-500.0,0.00013698,2]
[332114900,1720971042152,-812.25,0.00013698,2]
[332114902,1720971042161,-877.61,0.00013698,2]
[332114904,1720971042170,-556.96,0.00013698,2]
[332114906,1720971042180,-597.15,0.00013698,2]
[332114908,1720971042189,-500.0,0.00013698,2]
[332114910,1720971042198,-500.0,0.00013698,2]
[332114912,1720971042209,-500.0,0.00013698,2]
[332114914,1720971042219,-500.0,0.00013698,2]
[332114916,1720971042231,-836.17,0.00013698,2]
[332114918,1720971042241,-269.86574292,0.00013698,2]
[332114924,1720971042285,-230.13425708,0.00013698,2]
[332114926,1720971042295,-802.65,0.00013698,2]
[332114928,1720971042303,-500.0,0.00013698,2]
[332114930,1720971042313,-500.0,0.00013698,2]
[332114932,1720971042323,-500.0,0.00013698,2]
[332114934,1720971042332,-23.7975323,0.00013698,2]
[332114936,1720971042344,-476.2024677,0.00013698,2]
[332114939,1720971042354,-269.63157108,0.00013698,2]
[332114942,1720971042373,-230.36842892,0.00013698,2]
[332114944,1720971042383,-230.20130981,0.00013698,2]
[332114946,1720971042395,-269.79869019,0.00013698,2]
[332114948,1720971042404,-33.9880823,0.00013698,2]
[332114957,1720971042483,-475.2125,0.00013698,2]
[332115021,1720971043012,-52.5794177,0.00013698,2]
[332115024,1720971043023,-500.0,0.00013698,2]
[332115026,1720971043034,-500.0,0.00013698,2]
[332115028,1720971043043,-289.98,0.00013698,2]
[332115030,1720971043052,-500.0,0.00013698,2]
[332115032,1720971043062,-500.0,0.00013698,2]
[332115034,1720971043074,-500.0,0.00013698,2]
[332115035,1720971043085,-500.0,0.00013698,2]
[332115037,1720971043094,-500.0,0.00013698,2]
[332115039,1720971043104,-500.0,0.00013698,2]
[332115041,1720971043113,-500.0,0.00013698,2]
[332115043,1720971043122,-500.0,0.00013698,2]
[332115045,1720971043132,-500.0,0.00013698,2]
[332115047,1720971043141,-500.0,0.00013698,2]
[332115049,1720971043152,-500.0,0.00013698,2]
[332115051,1720971043162,-500.0,0.00013698,2]
[332115053,1720971043171,-500.0,0.00013698,2]
[332115055,1720971043181,-500.0,0.00013698,2]
[332115057,1720971043190,-500.0,0.00013698,2]
[332115059,1720971043199,-600.15,0.00013698,2]
[332115061,1720971043208,-500.0,0.00013698,2]
[332115063,1720971043218,-500.0,0.00013698,2]
[332115065,1720971043227,-500.0,0.00013698,2]
[332115067,1720971043237,-500.0,0.00013698,2]
[332115069,1720971043247,-542.88,0.00013698,2]
[332115071,1720971043256,-500.0,0.00013698,2]
[332115073,1720971043266,-650.6,0.00013698,2]
[332115075,1720971043275,-500.0,0.00013698,2]
[332115077,1720971043284,-500.0,0.00013698,2]
[332115079,1720971043293,-500.0,0.00013698,2]
[332115081,1720971043302,-500.0,0.00013698,2]
[332115083,1720971043311,-500.0,0.00013698,2]
[332115085,1720971043321,-500.0,0.00013698,2]
[332115087,1720971043330,-500.0,0.00013698,2]
[332115089,1720971043339,-500.0,0.00013698,2]
[332115091,1720971043348,-500.0,0.00013698,2]
[332115093,1720971043358,-587.88,0.00013698,2]
[332115095,1720971043367,-500.0,0.00013698,2]
[332115097,1720971043376,-500.0,0.00013698,2]
[332115099,1720971043386,-500.0,0.00013698,2]
[332115101,1720971043396,-500.0,0.00013698,2]
[332115103,1720971043407,-589.43,0.00013698,2]
[332115105,1720971043418,-500.0,0.00013698,2]
[332115107,1720971043429,-500.0,0.00013698,2]
[332115108,1720971043438,-500.0,0.00013698,2]
[332115109,1720971043447,-500.0,0.00013698,2]
[332115110,1720971043456,-500.0,0.00013698,2]
[332115111,1720971043467,-500.0,0.00013698,2]
[332115112,1720971043476,-664.1,0.00013698,2]
[332115113,1720971043487,-500.0,0.00013698,2]
[332115114,1720971043497,-500.0,0.00013698,2]
[332115116,1720971043508,-692.78,0.00013698,2]
[332115118,1720971043518,-500.0,0.00013698,2]
[332115120,1720971043530,-511.35,0.00013698,2]
[332115122,1720971043541,-747.44,0.00013698,2]
[332115124,1720971043551,-500.0,0.00013698,2]
[332115126,1720971043562,-500.0,0.00013698,2]
[332115128,1720971043571,-500.0,0.00013698,2]
[332115130,1720971043580,-561.36,0.00013698,2]
[332115132,1720971043590,-500.0,0.00013698,2]
[332115135,1720971043600,-500.0,0.00013698,2]
[332115137,1720971043612,-1120.82,0.00013698,2]
[332115139,1720971043622,-608.92,0.00013698,2]
[332115141,1720971043634,-493.86921469,0.00013698,2]
[332115143,1720971043648,-6.13078531,0.00013698,2]
[332115145,1720971043658,-500.0,0.00013698,2]
[332115147,1720971043668,-500.0,0.00013698,2]
[332115149,1720971043677,-500.0,0.00013698,2]
[332115151,1720971043686,-803.24,0.00013698,2]
[332115153,1720971043695,-990.73,0.00013698,2]
[332115155,1720971043705,-701.4,0.00013698,2]
[332115158,1720971043714,-920.4,0.00013698,2]
[332115160,1720971043723,-500.0,0.00013698,2]
[332115162,1720971043733,-94.37231961,0.00013698,2]
[332115164,1720971043745,-1079.92768039,0.00013698,2]
[332115166,1720971043754,-500.0,0.00013698,2]
[332115168,1720971043764,-295.63512865,0.00013698,2]
[332115170,1720971043773,-500.0,0.00013698,2]
[332115172,1720971043782,-500.0,0.00013698,2]
[332115173,1720971043791,-389.4478002,0.00013698,2]
[332115176,1720971043803,-110.5521998,0.00013698,2]
[332115177,1720971043812,-346.91735269,0.00013698,2]
[332115180,1720971043823,-153.08264731,0.00013698,2]
[332115182,1720971043833,-500.0,0.00013698,2]
[332115183,1720971043842,-500.0,0.00013698,2]
[332115185,1720971043851,-624.20478101,0.00013698,2]
[332115187,1720971043862,-156.99521899,0.00013698,2]
[332115189,1720971043872,-500.0,0.00013698,2]
[332115192,1720971043883,-235.637658,0.00013698,2]
[332115194,1720971043894,-500.0,0.00013698,2]
[332115196,1720971043903,-500.0,0.00013698,2]
[332115198,1720971043913,-500.0,0.00013698,2]
[332115200,1720971043922,-500.0,0.00013698,2]
[332115202,1720971043931,-500.0,0.00013698,2]
[332115204,1720971043940,-500.0,0.00013698,2]
[332115206,1720971043949,-596.74,0.00013698,2]
[332115208,1720971043959,-500.0,0.00013698,2]
[332115210,1720971043968,-500.0,0.00013698,2]
[332115212,1720971043977,-500.0,0.00013698,2]
[332115214,1720971043988,-500.0,0.00013698,2]
[332115216,1720971044000,-573.12712301,0.00013698,2]
[332115218,1720971044011,-109.15287699,0.00013698,2]
[332115220,1720971044020,-500.0,0.00013698,2]
[332115222,1720971044030,-73.37293301,0.00013698,2]
[332115224,1720971044041,-426.62706699,0.00013698,2]
[332115226,1720971044052,-299.8728388,0.00013698,2]
[332115228,1720971044062,-500.0,0.00013698,2]
[332115230,1720971044071,-500.0,0.00013698,2]
[332115232,1720971044082,-500.0,0.00013698,2]
[332115234,1720971044092,-500.0,0.00013698,2]
[332115236,1720971044101,-500.0,0.00013698,2]
[332115238,1720971044112,-781.71,0.00013698,2]
[332115240,1720971044121,-508.67,0.00013698,2]